[Event "55th Biel Festival MTO 2022"]
[Site "Biel"]
[Date "2022.07.22"]
[Round "9.29"]
[White "Kolbus, Dietmar"]
[Black "Lou, Vincent"]
[Result "1/2-1/2"]
[ECO "B38"]
[WhiteElo "2285"]
[BlackElo "2200"]
[Annotator "TA"]
[PlyCount "101"]
[EventDate "2022.07.13"]
[EventType "swiss"]
[EventCountry "SUI"]
[SourceTitle "playchess.com"]
[Source "ChessBase"]
[SourceQuality "1"]
[TimeControl "40/5400+30:1800+30"]

{[%evp 19,101,10,18,10,21,7,31,0,33,20,36,37,25,35,43,22,29,29,50,29,32,30,34,18,12,13,21,21,18,-15,-15,-15,-15,-37,-37,-37,-37,-37,-37,-37,0,-32,-18,-33,0,-35,-35,-56,-28,-74,-81,-83,-85,-124,-51,-52,-29,-35,-35,-28,-27,-36,-35,-59,-59,-59,0,-43,0,-59,-29,-59,-45,-51,-55,-57,-62,-83,-64,-64,-20,-35,-25,-28]} 1. c4 {[%emt 0:00:04]} c5 {[%emt 0:00:26]} 2. Nf3 {[%emt 0:00:45]} Nc6 {[%emt 0:00:06]} 3. Nc3 {[%emt 0:00:13]} g6 {[%emt 0:00:15]} 4. d4 {[%emt 0:07:10]} cxd4 {[%emt 0:00:19]} 5. Nxd4 {[%emt 0:00:07]} Bg7 {[%emt 0:00:05]} 6. Nxc6 {[%emt 0:01:14]} bxc6 {[%emt 0:00:07]} 7. e4 {[%emt 0:04:23]} d6 {[%emt 0:00:43]} 8. Be2 {[%emt 0:02:37]} Nf6 {[%emt 0:01:03]} 9. O-O {[%emt 0:00:11]} O-O {[%emt 0:00:30]} 10. Be3 {[%emt 0:03:27]} Nd7 {[%emt 0:00:46]} 11. Qd2 {[%emt 0:03:05] B38: Sicilian: Maroczy Bind with 5...Bg7 and 7...0-0.} Qc7 {[%emt 0:05:52]} 12. Rac1 {[%emt 0:10:21]} Rb8 {[%emt 0:01:56] [#]} 13. Na4 $146 {[%emt 0:06:48] White is slightly better.} ({Predecessor:} 13. b3 Nc5 14. f3 a5 15. Bd4 Bxd4+ 16. Qxd4 e5 17. Qd2 Ne6 18. Rfd1 Nd4 19. Bd3 {½-½ (28) Bures,V (2079)-Stodola,M (1963) Czech Republic 2013}) 13... Nf6 {[%emt 0:13:32]} 14. f3 {[%emt 0:01:11]} Rd8 {[%emt 0:08:27]} 15. Rfd1 {[%emt 0:01:52]} Bd7 {[%emt 0:09:46][%cal Bc8d7,Bd7e8,Be8c6][%mdl 32]} 16. b3 {[%emt 0:01:52]} Be8 {[%emt 0:05:05]} 17. Bf1 {[%emt 0:01:14]} c5 {[%emt 0:03:06]} 18. Nc3 {[%emt 0:00:43]} a5 {[%emt 0:02:40]} 19. Nb5 {[%emt 0:01:43]} Qb6 {[%emt 0:02:44]} 20. a4 {[%emt 0:00:39]} Bc6 {[%emt 0:01:04]} 21. Kh1 {[%emt 0:07:24]} Nd7 {[%emt 0:02:45][%cal Bf6d7,Bd7f8,Bf8e6,Be6d4][%mdl 32]} 22. Bd3 {[%emt 0:02:19]} Ra8 {[%emt 0:05:30]} 23. Bb1 {[%emt 0:01:32]} Nf8 {[%emt 0:03:07]} 24. Qe2 {[%emt 0:06:39]} Ne6 {[%emt 0:01:40]} 25. Bc2 {[%emt 0:05:03]} Nd4 {[%emt 0:01:57]} 26. Nxd4 {[%emt 0:02:11]} cxd4 {[%emt 0:00:50]} 27. Bd2 {[%emt 0:00:26]} e5 {[%emt 0:03:59]} 28. Rb1 {[%emt 0:02:38]} Rf8 {[%emt 0:03:22]} 29. Re1 {[%emt 0:06:09]} f5 {[%emt 0:04:33]} 30. Bd3 {[%emt 0:00:49]} Kh8 {[%emt 0:02:13]} 31. Qd1 {[%emt 0:00:16]} Bd7 {[%emt 0:02:54]} 32. Qe2 {[%emt 0:00:33]} Qc7 {[%emt 0:01:50]} 33. Rf1 {[%emt 0:01:36]} Rf7 {[%emt 0:02:30]} 34. Qe1 {[%emt 0:01:36]} (34. Qd1 $11) 34... f4 $17 {[%emt 0:00:58]} 35. Qe2 {[%emt 0:07:50]} Bf8 {[%emt 0:02:40]} 36. g4 {[%emt 0:02:04]} fxg3 {[%emt 0:00:04]} (36... Be7 $17 37. Rg1 Be6) 37. hxg3 $15 {[%emt 0:00:07]} Bg7 {[%emt 0:02:22]} 38. Qh2 {[%emt 0:02:17]} Be6 {[%emt 0:01:42]} 39. Kg2 {[%emt 0:00:16]} Kg8 {[%emt 0:00:25]} 40. Qh4 {[%emt 0:06:40]} Raf8 {[%emt 0:01:57]} 41. Rf2 {[%emt 0:02:46]} Bf6 {[%emt 0:02:31]} 42. Qh6 {[%emt 0:00:45]} Bg7 {[%emt 0:00:33]} 43. Qh4 {[%emt 0:00:15]} Bf6 {[%emt 0:03:42]} 44. Qh6 {[%emt 0:00:06]} Bd8 {[%emt 0:00:39]} 45. Rff1 {[%emt 0:06:39]} Qe7 {[%emt 0:01:46]} 46. Rbe1 {[%emt 0:00:36]} Rg7 {[%emt 0:03:21]} 47. Rh1 {[%emt 0:07:14]} g5 {[%emt 0:01:28]} 48. Ref1 {[%emt 0:01:27]} Rf6 {[%emt 0:04:18]} 49. Qh2 {[%emt 0:01:29]} Rgg6 {[%emt 0:06:24]} 50. g4 {[%emt 0:01:09]} Rg7 {[%emt 0:04:57]} 51. Qg3 {[%emt 0:00:42] Weighted Error Value: White=0.11 (very precise) /Black=0.12 (very precise)} 1/2-1/2

[Event "55th Biel Festival MTO 2022"]
[Site "Biel"]
[Date "2022.07.22"]
[Round "9.30"]
[White "Mamedov, Edgar"]
[Black "Popiol, Michal"]
[Result "1-0"]
[ECO "D00"]
[WhiteElo "2227"]
[BlackElo "2118"]
[Annotator "TA"]
[PlyCount "65"]
[EventDate "2022.07.13"]
[EventType "swiss"]
[EventCountry "SUI"]
[SourceTitle "playchess.com"]
[Source "ChessBase"]
[SourceQuality "1"]
[TimeControl "40/5400+30:1800+30"]

{[%evp 10,65,0,0,0,0,0,4,14,16,6,0,18,13,42,48,60,53,106,114,100,70,163,0,0,0,2,3,32,-23,123,101,115,125,238,237,217,197,318,330,356,306,490,480,526,519,774,768,1783,1689,1510,1454,5402,5393,2035,1437,29998,29999]} 1. d4 {[%emt 0:00:02]} Nf6 {[%emt 0:07:38]} 2. Bg5 {[%emt 0:00:20]} g6 {[%emt 0:00:06]} 3. Bxf6 {[%emt 0:00:19]} exf6 {[%emt 0:00:05]} 4. e3 {[%emt 0:01:02]} d5 {[%emt 0:00:09]} 5. c4 {[%emt 0:01:18]} dxc4 {[%emt 0:08:27]} 6. Bxc4 {[%emt 0:00:26]} Bd6 {[%emt 0:00:04] D00: 1 d4 d5: Unusual lines.} 7. Nc3 {[%emt 0:01:21]} O-O {[%emt 0:00:13]} 8. Nf3 {[%emt 0:01:30]} c6 {[%emt 0:02:00] The position is equal.} 9. O-O {[%emt 0:03:44]} Nd7 {[%emt 0:26:18]} 10. e4 {[%emt 0:04:53][%cal Be3e4,Be4e5][%mdl 32] [#]} b5 $146 {[%emt 0:08:54]} ({Predecessor:} 10... Nb6 11. Bb3 Bg4 12. h3 Bxf3 13. Qxf3 Kg7 14. Rad1 Qe7 15. Rfe1 Rad8 16. Qe3 Rfe8 {½-½ (52) Sarana,A (2641)-Demchenko,A (2679) Sochi 2018}) 11. Bb3 {[%emt 0:02:51]} a6 {[%emt 0:02:54]} 12. Re1 {[%emt 0:02:00]} c5 {[%emt 0:04:21]} 13. e5 {[%emt 0:27:05] [#] Bd5 is the strong threat.} cxd4 {[%emt 0:03:47]} ({Better is} 13... Be7 $14) 14. exd6 $16 {[%emt 0:00:28]} dxc3 {[%emt 0:00:04]} 15. bxc3 {[%emt 0:02:29] Hoping for Re7.} Bb7 {[%emt 0:00:08]} (15... a5 $14) 16. Bd5 $2 {[%emt 0:11:27]} (16. Re7 $18) 16... Bxd5 $11 {[%emt 0:08:00]} 17. Qxd5 {[%emt 0:00:06]} Nb6 {[%emt 0:00:03]} 18. Qd4 {[%emt 0:01:27]} Rc8 {[%emt 0:00:10]} 19. Nd2 {[%emt 0:05:43] Against Rc4} ({White should try} 19. Rad1 $14) 19... f5 {[%emt 0:02:34] [#]} (19... Rc6 $11 {remains equal.} 20. Ne4 Kg7) 20. Rad1 $1 $36 {[%emt 0:02:39][%mdl 2048] Keeping Black busy. 0x0.001eb8fcc939dp-1022s more active pieces.} Rc6 {[%emt 0:08:57]} 21. Nf3 {[%emt 0:01:41]} Nc4 {[%emt 0:00:07]} (21... Rc4 $16 22. Qd2 f6) 22. d7 $18 {[%emt 0:01:14]} Rd6 {[%emt 0:02:20]} 23. Qa7 {[%emt 0:01:10]} Rxd1 {[%emt 0:04:50]} (23... Rb6 $142 24. Rd5 Nd6) 24. Rxd1 {[%emt 0:00:10]} Qf6 {[%emt 0:00:03]} 25. Qd4 {[%emt 0:11:51]} Qd8 {[%emt 0:00:05]} (25... Qxd4 {was worth a try.} 26. Nxd4 (26. Rxd4 Rd8 $11) 26... Ne5) 26. Ne5 {[%emt 0:01:37] And now Nc6 would win.} Nxe5 {[%emt 0:02:08]} 27. Qxe5 {[%emt 0:00:11][%mdl 4096] Endgame KQR-KQR} Qa8 {[%emt 0:00:16]} 28. Re1 {[%emt 0:05:38] Black must now prevent Qe8.} Rd8 {[%emt 0:02:01]} 29. Qe8+ {[%emt 0:02:28]} Kg7 {[%emt 0:00:04]} 30. Re7 {[%emt 0:01:45]} Qd5 {[%emt 0:00:13]} 31. Rxf7+ {[%emt 0:00:23]} Kh6 {[%emt 0:00:00]} 32. Qe3+ {[%emt 0:00:30]} g5 {[%emt 0:00:15]} 33. Qh3+ {[%emt 0:00:07] Weighted Error Value: White=0.16 (very precise) /Black=0.68} 1-0

[Event "55th Biel Festival MTO 2022"]
[Site "Biel"]
[Date "2022.07.22"]
[Round "9.31"]
[White "Stijve, Theo"]
[Black "Matsumura, Cocoro"]
[Result "1-0"]
[ECO "A09"]
[WhiteElo "2394"]
[BlackElo "2043"]
[Annotator "TA"]
[PlyCount "61"]
[EventDate "2022.07.13"]
[EventType "swiss"]
[EventCountry "SUI"]
[SourceTitle "playchess.com"]
[Source "ChessBase"]
[SourceQuality "1"]
[TimeControl "40/5400+30:1800+30"]

{[%evp 9,61,-29,-16,-16,-14,-35,-20,-60,-19,-45,-26,-23,-15,-40,-15,-18,-10,-22,-22,-37,-35,-31,-15,-12,-16,0,-36,-157,-149,-108,-133,-107,-70,-92,-106,-316,-168,-183,-201,-196,535,519,759,756,694,703,1337,1056,29969,29970,29968,29962,5314,2950]} 1. Nf3 {[%emt 0:00:04]} d5 {[%emt 0:00:06]} 2. c4 {[%emt 0:00:06]} d4 {[%emt 0:00:05]} 3. g3 {[%emt 0:01:45]} Nc6 {[%emt 0:01:34]} 4. Bg2 {[%emt 0:00:46]} e5 {[%emt 0:00:29]} 5. d3 {[%emt 0:00:09]} Bc5 {[%emt 0:05:15]} 6. O-O {[%emt 0:00:22][%cal Ob2b4] A09: Réti Opening: 1 Nf3 d5 2 c4.} Nge7 {[%emt 0:03:59]} 7. Na3 {[%emt 0:07:55]} O-O {[%emt 0:01:59] [#]} 8. Rb1 $146 {[%emt 0:01:09] The position is equal.} ({Predecessor:} 8. Nc2 a5 9. b3 Ng6 10. a3 Qe7 11. Rb1 Bf5 12. Qd2 e4 13. Nfe1 Rad8 14. b4 axb4 15. axb4 {1-0 (44) Pantsulaia,L (2553)-Sadhwani,R (2555) Chess.com INT 2021}) 8... Ng6 {[%emt 0:10:49]} 9. Bd2 {[%emt 0:08:58]} Qe7 {[%emt 0:02:29]} 10. Nc2 {[%emt 0:00:19] Threatens to win with b4.} a5 {[%emt 0:00:16] Inhibits b4.} 11. e3 {[%emt 0:03:06]} dxe3 {[%emt 0:02:28]} 12. Nxe3 {[%emt 0:03:13]} Qd6 {[%emt 0:09:54]} 13. Ng5 {[%emt 0:05:01]} Qxd3 {[%emt 0:17:04]} 14. Be4 {[%emt 0:23:38]} Qd6 {[%emt 0:02:34]} 15. Bd5 {[%emt 0:00:44] Strongly threatening Qh5.} Nce7 {[%emt 0:01:37]} 16. Qh5 {[%emt 0:08:39][%csl Gg5][%cal Rh5h7]} h6 {[%emt 0:00:13]} 17. Ne4 $40 {[%emt 0:00:20][%mdl 128] White is up to no good.} Qb6 {[%emt 0:00:11] ...c6 is the strong threat.} 18. b4 {[%emt 0:01:39] [#]} (18. Nxc5 $15 Qxc5 19. b4) 18... Bd4 $1 $17 {[%emt 0:05:47]} ({Don't play} 18... axb4 $6 19. Nxc5 Qxc5 20. Bxb4 $11) (18... Bxb4 19. a3 c6 20. c5 $15) 19. c5 {[%emt 0:02:50] [#]} Qb5 {[%emt 0:05:05]} 20. bxa5 {[%emt 0:01:06]} Qd7 {[%emt 0:02:08]} 21. Bc4 {[%emt 0:04:15]} ({Wrong is} 21. Bxb7 $2 Bxb7 22. Rxb7 Qc6 $19) 21... Qc6 {[%emt 0:02:31]} 22. f3 {[%emt 0:05:51]} (22. Qf3 $17) 22... Nf4 {[%emt 0:03:24]} 23. gxf4 $19 {[%emt 0:01:21]} exf4 {[%emt 0:00:12][%mdl 64] Pin} 24. Bc3 {[%emt 0:05:28]} Bxe3+ {[%emt 0:03:47][%mdl 8192]} (24... Qg6+ $19 {and life is good for Black.} 25. Qxg6 Bxe3+ 26. Kh1 Nxg6) 25. Kh1 $18 {[%emt 0:00:12][%cal Of1g1] Hoping for Rg1!} Qg6 {[%emt 0:02:11] [#] Against Rg1} 26. Rg1 $1 {[%emt 0:01:24][%mdl 576] Skewer} Bxg1 {[%emt 0:04:16] [#]} 27. Rxg1 $1 {[%emt 0:01:11]} Qxg1+ {[%emt 0:08:52]} (27... Bf5 28. Rxg6) 28. Kxg1 {[%emt 0:00:08][%cal Oe4f6] Intending Nf6+! and mate.} Nf5 {[%emt 0:00:21] [#]} 29. Nf6+ $1 {[%emt 0:01:27][%mdl 512]} Kh8 {[%emt 0:01:08] [#]} 30. Bxf7 $1 {[%emt 0:00:19]} Ra6 {[%emt 0:01:07] [#]} 31. Qg6 $1 {[%emt 0:03:15] Weighted Error Value: White=0.23 (precise) /Black=0.71} 1-0

[Event "55th Biel Festival MTO 2022"]
[Site "Biel"]
[Date "2022.07.22"]
[Round "9.32"]
[White "Aydin, Gulenay"]
[Black "Bewersdorff, Oliver"]
[Result "0-1"]
[ECO "C48"]
[WhiteElo "2100"]
[BlackElo "2280"]
[Annotator "TA"]
[PlyCount "97"]
[EventDate "2022.07.13"]
[EventType "swiss"]
[EventCountry "SUI"]
[SourceTitle "playchess.com"]
[Source "ChessBase"]
[SourceQuality "1"]
[TimeControl "40/5400+30:1800+30"]

{[%evp 9,97,16,29,19,35,12,12,0,7,20,22,0,15,7,23,20,23,0,0,0,0,-68,0,0,2,0,0,0,0,-27,14,0,0,0,0,0,4,-10,11,0,0,0,0,0,0,0,36,30,47,0,51,35,42,35,71,59,105,106,79,86,97,83,171,170,229,221,216,187,339,220,285,183,178,178,245,248,286,286,279,271,292,295,300,292,292,292,341,342,397,389]} 1. e4 {[%emt 0:00:04]} e5 {[%emt 0:00:13]} 2. Nf3 {[%emt 0:00:07]} Nc6 {[%emt 0:00:05]} 3. Nc3 {[%emt 0:00:05]} Nf6 {[%emt 0:00:10]} 4. Bb5 {[%emt 0:00:08][%cal Bf1b5,Bb5a4,Ba4b3][%mdl 32]} Bd6 {[%emt 0:00:25]} 5. d3 {[%emt 0:00:21]} a6 {[%emt 0:00:41]} 6. Ba4 {[%emt 0:05:58] C48: Four Knights: 4 Bb5, replies other than 4...Bb4.} h6 {[%emt 0:00:35]} 7. Bb3 {[%emt 0:04:25]} Bb4 {[%emt 0:17:29]} 8. a3 {[%emt 0:03:45] The position is equal.} Ba5 {[%emt 0:03:11] [#]} 9. O-O $146 {[%emt 0:01:11]} ({Predecessor:} 9. Bd2 d6 10. h3 O-O 11. Nd5 Be6 12. Bxa5 Nxa5 13. Nxf6+ Qxf6 14. Bxe6 Qxe6 15. O-O Rfe8 16. Qe2 {1-0 (25) Schmidt Riese,E-Brenner,A Germany 2008}) 9... d6 {[%emt 0:02:05]} 10. h3 {[%emt 0:01:18]} O-O {[%emt 0:03:59]} 11. Be3 {[%emt 0:03:06]} Be6 {[%emt 0:00:29]} 12. Bxe6 {[%emt 0:13:52]} fxe6 {[%emt 0:00:10]} 13. b4 {[%emt 0:00:09]} Bb6 {[%emt 0:00:10]} 14. Bxb6 {[%emt 0:00:11]} cxb6 {[%emt 0:00:05]} 15. d4 {[%emt 0:00:48]} (15. Nb1 $11) 15... exd4 {[%emt 0:06:19]} (15... Rc8 $15) 16. Nxd4 $11 {[%emt 0:00:38]} Qe7 {[%emt 0:00:31]} 17. Nxc6 {[%emt 0:05:03]} bxc6 {[%emt 0:01:15]} 18. Qe2 {[%emt 0:01:31]} b5 {[%emt 0:04:47]} 19. Rfe1 {[%emt 0:05:18]} e5 {[%emt 0:01:01]} 20. Rad1 {[%emt 0:01:50]} a5 {[%emt 0:05:18]} 21. Qd2 {[%emt 0:05:09]} axb4 {[%emt 0:01:18]} 22. axb4 {[%emt 0:00:02]} Rad8 {[%emt 0:03:54]} 23. Qe3 {[%emt 0:01:21]} Qc7 {[%emt 0:01:06]} 24. Ra1 {[%emt 0:03:31]} Ra8 {[%emt 0:00:47]} 25. Ne2 {[%emt 0:01:19]} d5 {[%emt 0:06:23]} 26. Ng3 {[%emt 0:01:10]} d4 {[%emt 0:01:14]} 27. Qd3 {[%emt 0:04:12]} Kh8 {[%emt 0:04:14]} 28. c3 {[%emt 0:05:14]} Rad8 {[%emt 0:03:04]} 29. Ra2 {[%emt 0:05:31]} (29. Ra6 $14 {is more appropriate.}) 29... dxc3 {[%emt 0:05:23]} ({Better is} 29... Qf7 $11 30. Rc2 Qb3) 30. Qxc3 $14 {[%emt 0:00:07]} Rd4 {[%emt 0:00:31]} 31. Qc5 {[%emt 0:09:59]} Rf7 {[%emt 0:03:32]} 32. Rc2 {[%emt 0:00:56] Prevents Rc4.} Qd6 {[%emt 0:03:08] Black is now going downhill.} (32... Nd7 $14 33. Qxc6 Qxc6 34. Rxc6 Rxb4) 33. Qxd6 $16 {[%emt 0:01:24]} Rxd6 {[%emt 0:00:05]} 34. Nf5 $36 {[%emt 0:02:44][%mdl 2048] White has strong initiative.} Re6 {[%emt 0:01:09][%cal Of6e4]} 35. f3 {[%emt 0:00:22]} Nd7 {[%emt 0:01:04]} (35... Ra7 $16 {is a better defense.}) 36. Rd1 $18 {[%emt 0:02:19]} Kh7 {[%emt 0:07:57]} (36... Nf8 $142 37. Rd8 Kh7) 37. Nd6 {[%emt 0:02:29]} Rff6 {[%emt 0:01:14]} 38. Nxb5 {[%emt 0:00:25]} ({Don't play} 38. Rxc6 $6 Nf8) 38... Nb6 $2 {[%emt 0:00:33] [#]} (38... Nb8) 39. Na3 {[%emt 0:00:45]} Kg6 {[%emt 0:01:00]} 40. Nc4 {[%emt 0:03:18]} Nxc4 {[%emt 0:00:31]} 41. Rxc4 {[%emt 0:30:02][%mdl 4096] Endgame KRR-KRR} h5 {[%emt 0:32:52]} (41... Kg5 $142 42. Rd7 g6) 42. h4 {[%emt 0:01:03]} Kh6 {[%emt 0:00:31]} 43. Rd8 {[%emt 0:01:27]} Rd6 {[%emt 0:03:14]} 44. Rc8 {[%emt 0:00:58]} Kg6 {[%emt 0:02:03]} 45. Rc5 {[%emt 0:01:47]} Rde6 {[%emt 0:02:52]} 46. Ra8 {[%emt 0:01:11]} Re7 {[%emt 0:00:00]} 47. Raa5 {[%emt 0:00:00]} Rfe6 {[%emt 0:00:00]} 48. Ra6 {[%emt 0:00:00]} Rd7 {[%emt 0:00:00]} 49. b5 {[%emt 0:00:00][%mdl 32768] Weighted Error Value: White=0.13 (very precise) /Black=0.26 (precise) . Loss on time!?} 0-1

[Event "55th Biel Festival MTO 2022"]
[Site "Biel"]
[Date "2022.07.22"]
[Round "9.33"]
[White "Nideroest, Bruno"]
[Black "Ludwig, Peter"]
[Result "1-0"]
[ECO "C18"]
[WhiteElo "2258"]
[BlackElo "2163"]
[Annotator "TA"]
[PlyCount "139"]
[EventDate "2022.07.13"]
[EventType "swiss"]
[EventCountry "SUI"]
[SourceTitle "playchess.com"]
[Source "ChessBase"]
[SourceQuality "1"]
[TimeControl "40/5400+30:1800+30"]

{[%evp 13,139,-12,-9,-12,22,6,59,58,59,53,51,42,104,98,118,24,20,33,31,27,25,15,26,0,84,70,59,73,60,60,71,67,90,66,78,24,80,-169,-162,-336,20,27,65,70,160,170,232,125,278,255,281,132,219,184,200,192,185,133,127,141,120,44,87,27,45,27,27,27,440,398,468,466,459,444,866,836,824,814,842,827,825,605,804,710,939,925,843,804,2039,1977,1533,1702,29973,29974,29972,29973,29978,29979,29979,29979,29979,29979,29979,0,29979,29980,29980,29978,29980,29980,29980,29981,29981,29982,29982,29983,29983,29984,29985,29986,29986,29987,29987,29988,29989,29990,29990,29991]} 1. e4 {[%emt 0:02:06]} e6 {[%emt 0:07:57]} 2. d4 {[%emt 0:00:05]} d5 {[%emt 0:00:10]} 3. Nc3 {[%emt 0:00:02]} Bb4 {[%emt 0:00:09]} 4. e5 {[%emt 0:00:07]} Ne7 {[%emt 0:01:09]} 5. a3 {[%emt 0:00:17]} Bxc3+ {[%emt 0:00:03]} 6. bxc3 {[%emt 0:00:01]} c5 {[%emt 0:00:05]} 7. h4 {[%emt 0:00:16]} Qc7 {[%emt 0:01:30]} 8. Rb1 {[%emt 0:00:13] C18: French: 3 Nc3 Bb4: Main line: 7 h4 and 7 Qg4.} Bd7 {[%emt 0:08:29]} 9. h5 {[%emt 0:00:21]} Nbc6 {[%emt 0:04:17]} (9... h6 $11) 10. h6 $1 $14 {[%emt 0:00:26] White is slightly better.} gxh6 {[%emt 0:00:06]} 11. Nf3 {[%emt 0:08:29]} O-O-O {[%emt 0:03:57]} 12. Bxh6 {[%emt 0:06:55]} cxd4 {[%emt 0:19:11]} (12... Rhg8 $1 $14) 13. cxd4 $16 {[%emt 0:00:24]} Nf5 {[%emt 0:00:07] [#]} 14. c3 $146 {[%emt 0:23:35]} ({Better is} 14. Bg5 $1 $16) ({Predecessor:} 14. Bf4 Ncxd4 15. Nxd4 Qc3+ 16. Qd2 Qxd2+ 17. Kxd2 Nxd4 18. Bg5 Rdf8 19. Be7 Re8 20. Bf6 {1-0 (91) Alvir,A (2386)-Bachofner,A (2179) Austria 2001}) 14... Nxh6 $11 {[%emt 0:08:40]} 15. Rxh6 {[%emt 0:00:10]} Rdg8 {[%emt 0:00:05]} 16. g3 {[%emt 0:03:57]} Rg6 {[%emt 0:02:32]} 17. Rh5 {[%emt 0:10:21]} f6 {[%emt 0:02:39]} 18. Bd3 {[%emt 0:27:02]} f5 {[%emt 0:00:51]} (18... Be8 $11 {keeps the balance.}) 19. Nh4 {[%emt 0:02:11]} Rg7 {[%emt 0:01:28]} 20. Ng2 {[%emt 0:01:44]} Ne7 {[%emt 0:02:40]} 21. Qb3 {[%emt 0:05:11]} Ng6 {[%emt 0:01:14]} 22. Kd2 {[%emt 0:03:21]} Rf8 {[%emt 0:01:43]} 23. Ke3 {[%emt 0:02:31] Inhibits f4+.} Be8 {[%emt 0:06:15][%cal Og6e5] Strongly threatening ...Nxe5!} 24. Rh2 {[%emt 0:01:18]} ({White should try} 24. Rh6 $16) 24... Qf7 {[%emt 0:02:00]} (24... f4+ $1 $11 25. Nxf4 Nxf4 26. gxf4 (26. Qb4 Qf7 $11) 26... Bg6) 25. Ke2 $2 {[%emt 0:00:37] White is much more active.} (25. Nf4 $16 {and life is bright.}) 25... f4 $19 {[%emt 0:01:46]} 26. Bxg6 $2 {[%emt 0:00:16]} (26. gxf4 {is a better defense.} Nxf4+ 27. Nxf4 Qxf4 28. Rbh1) 26... f3+ $2 {[%emt 0:00:19]} (26... Qxg6 $19 27. gxf4 (27. Nxf4 $2 Rxf4 28. Rc1 Qe4+ 29. Kd2 Qf5 $19) 27... Qe4+ 28. Ne3 Rxf4) 27. Kd2 $11 {[%emt 0:00:24]} Qxg6 {[%emt 0:03:07]} 28. Ne3 $36 {[%emt 0:00:01][%mdl 2048] White fights for an advantage.} Qg5 {[%emt 0:02:31]} (28... Rc7 $14) 29. Qb4 $16 {[%emt 0:00:40]} Rff7 {[%emt 0:01:23] [#]} (29... Qe7 $142 30. c4 dxc4) 30. Rbh1 {[%emt 0:00:47]} (30. Qc5+ $1 $18 Kb8 31. Qd6+ Rc7 32. Qxe6) 30... Qd8 $2 {[%emt 0:04:47]} (30... Rc7 $16 {was called for.}) 31. Rh6 $18 {[%emt 0:00:09]} Qd7 {[%emt 0:03:33]} 32. R6h4 {[%emt 0:00:35]} (32. Qc5+ $18 {has better winning chances.} Kb8 33. Qd6+ Qxd6 34. exd6) 32... b6 {[%emt 0:03:33]} (32... Kb8 $16 33. Rh6 Re7) 33. Ng4 {[%emt 0:01:10]} Kb7 {[%emt 0:00:04]} 34. Nf6 {[%emt 0:00:13]} a5 {[%emt 0:01:40]} 35. Nxd7 {[%emt 0:00:47]} (35. Qb3 $18 Qc6 36. Rxh7) 35... axb4 $16 {[%emt 0:00:07]} 36. Nf6 {[%emt 0:00:03]} bxc3+ {[%emt 0:00:46]} 37. Ke3 {[%emt 0:01:25]} ({Much weaker is} 37. Kxc3 $6 Rc7+ 38. Kd2 Bg6 $11) (37. Kc2 $16 Ba4+ 38. Kxc3) 37... Re7 {[%emt 0:05:42]} 38. Nxe8 {[%emt 0:00:17]} (38. Rc1 $16) 38... Rxe8 $11 {[%emt 0:00:05]} 39. Rxh7 {[%emt 0:00:11]} Rxh7 {[%emt 0:00:17]} 40. Rxh7+ $16 {[%emt 0:00:30][%mdl 4096] Endgame KR-KR} Kb8 $2 {[%emt 0:00:07][%mdl 8192] White stays focused until the end.} (40... Kc6 $11 {and Black has nothing to worry.}) 41. Rh1 $18 {[%emt 0:31:15]} c2 {[%emt 0:10:31]} 42. Rc1 {[%emt 0:00:00]} Rc8 {[%emt 0:00:06]} 43. Kd3 {[%emt 0:00:00] Inhibits Rc3+.} Rc4 {[%emt 0:00:07]} (43... Kb7 $142 44. Rxc2 Ra8) 44. Rxc2 {[%emt 0:00:00]} Ra4 {[%emt 0:00:04]} 45. Rc3 {[%emt 0:00:00]} Kb7 {[%emt 0:00:05]} 46. Ke3 {[%emt 0:00:00]} b5 {[%emt 0:00:27]} 47. Rd3 {[%emt 0:00:00]} Kc6 {[%emt 0:00:18]} 48. Kxf3 {[%emt 0:00:00]} b4 {[%emt 0:00:04]} 49. axb4 {[%emt 0:00:00]} Rxb4 {[%emt 0:00:04]} 50. Kf4 {[%emt 0:00:00]} Kd7 {[%emt 0:00:04]} 51. Kg5 {[%emt 0:00:00]} Ke7 {[%emt 0:00:05]} 52. f4 {[%emt 0:00:00]} Kf7 {[%emt 0:00:39]} 53. g4 {[%emt 0:00:00]} Ra4 {[%emt 0:00:05]} 54. f5 {[%emt 0:00:00]} exf5 {[%emt 0:00:16]} 55. gxf5 {[%emt 0:00:00]} Ra1 {[%emt 0:00:09]} 56. Rg3 {[%emt 0:00:00]} Rd1 {[%emt 0:00:43]} 57. Rg4 {[%emt 0:00:00]} Rf1 {[%emt 0:00:43]} 58. Rg3 {[%emt 0:01:09]} Rd1 {[%emt 0:00:14]} 59. e6+ {[%emt 0:00:39] White mates.} Ke7 {[%emt 0:00:26]} 60. Rg4 {[%emt 0:00:13]} Rf1 {[%emt 0:03:16]} 61. Rh4 {[%emt 0:02:40]} Rg1+ {[%emt 0:00:11]} 62. Kf4 {[%emt 0:00:20]} Re1 {[%emt 0:00:06]} 63. Rh7+ {[%emt 0:01:15]} Kd6 {[%emt 0:00:05]} 64. Rd7+ {[%emt 0:00:48]} Kc6 {[%emt 0:00:05]} 65. Kg5 {[%emt 0:00:11]} Re4 {[%emt 0:00:10]} 66. Kf6 {[%emt 0:00:28]} Rxd4 {[%emt 0:00:09]} 67. Ke7 {[%emt 0:00:43]} Rh4 {[%emt 0:00:33]} 68. f6 {[%emt 0:00:21][%cal Bf5f6,Bf6f7][%mdl 32]} Rh6 {[%emt 0:00:45]} 69. f7 {[%emt 0:00:54]} Rh7 {[%emt 0:00:08]} 70. Ke8 {[%emt 0:00:44] Weighted Error Value: White=0.40/Black=0.68} 1-0